bitfinex/quotes_BTCUSD_20241107
["timestamp","ask_amount","ask_price","bid_price","bid_amount"]
[1730966401587,1.94357786,74803.0,74797.0,0.001512]
[1730966401819,2.07526186,74803.0,74797.0,0.001512]
[1730966402485,0.28563385,74803.0,74797.0,0.001512]
[1730966402709,0.23173102,74803.0,74797.0,0.001512]
[1730966402938,0.23273102,74803.0,74797.0,0.001512]
[1730966403147,0.24321502,74803.0,74797.0,0.001512]
[1730966403403,0.10953102,74803.0,74797.0,0.001512]
[1730966403611,0.18817503,74803.0,74798.0,0.0452]
[1730966403823,0.32185903,74803.0,74798.0,0.0452]
[1730966404035,0.32085903,74803.0,74798.0,0.0452]
[1730966404501,0.32085903,74803.0,74780.0,0.001512]
[1730966404502,0.62846422,74803.0,74782.0,0.0753]
[1730966404744,0.62846422,74803.0,74781.0,0.048]
[1730966404745,0.4711762,74803.0,74781.0,0.048]
[1730966404968,0.4711762,74803.0,74780.0,0.001512]
[1730966404969,0.0777,74799.0,74780.0,0.001512]
[1730966405182,0.07864401,74782.0,74780.0,0.001512]
[1730966405407,0.1,74787.0,74780.0,0.001512]
[1730966405899,0.20047982,74800.0,74780.0,0.001512]
[1730966405900,0.1,74785.0,74781.0,0.0495]
[1730966406553,0.07864401,74784.0,74781.0,0.0495]
[1730966406997,0.17864401,74788.0,74781.0,0.0495]
[1730966408153,0.07864401,74788.0,74781.0,0.0495]
[1730966408648,0.1,74787.0,74781.0,0.0495]
[1730966408888,0.07864401,74782.0,74781.0,0.0495]
[1730966409118,0.07864401,74782.0,74781.0,0.0347]
[1730966409529,0.1,74787.0,74781.0,0.0347]
[1730966412269,0.1,74787.0,74780.0,0.001512]
[1730966413628,0.05421935,74790.0,74781.0,0.1282]
[1730966414059,0.1,74793.0,74781.0,0.0489]
[1730966414278,0.20047982,74791.0,74782.0,0.0817]
[1730966415047,0.3253477,74783.0,74782.0,0.0817]
[1730966415262,0.1,74782.0,74780.0,0.001512]
[1730966417726,0.12486788,74783.0,74780.0,0.001512]
[1730966418437,0.12486788,74783.0,74782.0,0.000833]
[1730966419562,0.12486788,74789.0,74782.0,0.000833]
[1730966419787,0.1,74788.0,74782.0,0.000833]
[1730966420262,0.1,74786.0,74782.0,0.000833]
[1730966422070,1.5,74787.0,74782.0,0.000833]
[1730966423871,0.12486788,74789.0,74782.0,0.000833]
[1730966424087,0.1,74788.0,74782.0,0.000833]
[1730966424295,1.5,74787.0,74782.0,0.000833]
[1730966424557,0.1,74786.0,74782.0,0.000833]
[1730966425235,0.20047982,74800.0,74782.0,0.000833]
[1730966425236,0.1,74795.0,74782.0,0.000833]
[1730966425457,0.20047982,74792.0,74783.0,0.049]
[1730966425670,0.20047982,74792.0,74784.0,0.0754]
[1730966426556,0.1,74797.0,74784.0,0.0754]
[1730966426767,0.23224102,74797.0,74784.0,0.0754]
[1730966427203,0.20047982,74792.0,74784.0,0.0754]
[1730966427415,0.12486788,74793.0,74784.0,0.0754]
[1730966427647,0.2571089,74793.0,74784.0,0.0754]
[1730966427881,0.1,74797.0,74784.0,0.0754]
[1730966428104,0.1,74795.0,74784.0,0.0754]
[1730966428994,0.20047982,74792.0,74784.0,0.0754]
[1730966429209,0.3253477,74792.0,74784.0,0.0754]
[1730966429415,0.12486788,74792.0,74784.0,0.0754]
[1730966430943,0.12653388,74792.0,74784.0,0.0754]
[1730966431608,1.5,74791.0,74784.0,0.0754]
[1730966432039,0.20047982,74790.0,74784.0,0.0754]
[1730966432251,0.12653388,74792.0,74782.0,0.000833]
[1730966432716,1.5,74791.0,74782.0,0.000833]
[1730966433640,0.33272084,74790.0,74782.0,0.000833]
[1730966433853,0.12486788,74786.0,74782.0,0.000833]
[1730966434289,0.12653388,74792.0,74782.0,0.000833]
[1730966434510,0.20047982,74791.0,74783.0,0.1275]
[1730966435565,1.5,74790.0,74783.0,0.1275]
[1730966439403,0.12653388,74792.0,74783.0,0.1275]
[1730966440100,1.5,74791.0,74783.0,0.1275]
[1730966442509,1.5,74791.0,74783.0,0.128332]
[1730966447547,0.07865491,74788.0,74783.0,0.128332]
[1730966451294,0.07865491,74788.0,74783.0,0.000832]
[1730966451508,0.07865491,74784.0,74783.0,0.000832]
[1730966451726,0.13224102,74787.0,74783.0,0.000832]
[1730966452169,1.77913473,74784.0,74783.0,0.000832]
[1730966452385,1.57865491,74784.0,74783.0,0.000832]
[1730966453035,1.5,74784.0,74783.0,0.000832]
[1730966453245,1.5,74784.0,74783.0,0.123632]
[1730966453664,0.053489,74789.0,74783.0,0.123632]
[1730966456950,0.001664,74791.0,74783.0,0.123632]
[1730966457373,0.001664,74791.0,74783.0,0.12630613]
[1730966460246,0.001664,74791.0,74783.0,0.123632]
[1730966462115,0.07865491,74790.0,74783.0,0.123632]
[1730966468693,1.57865491,74790.0,74783.0,0.123632]
[1730966469111,0.07865491,74790.0,74783.0,0.123632]
[1730966470776,0.07865491,74786.0,74783.0,0.123632]
[1730966471658,0.07865491,74786.0,74783.0,0.000832]
[1730966472124,0.001664,74791.0,74783.0,0.000832]
[1730966472329,0.07865491,74788.0,74783.0,0.000832]
[1730966474730,0.07865491,74784.0,74783.0,0.000832]
[1730966477798,0.133755,74764.0,74749.0,0.005]
[1730966478142,0.0794,74769.0,74756.0,0.20199182]
[1730966478143,0.07865491,74763.0,74756.0,0.20199182]
[1730966478360,1.57865491,74763.0,74756.0,0.001512]
[1730966479468,1.5,74763.0,74756.0,0.001512]
[1730966480113,0.07865491,74767.0,74756.0,0.001512]
[1730966480535,0.07865491,74763.0,74756.0,0.001512]
[1730966481847,0.21241091,74763.0,74756.0,0.001512]
[1730966482111,0.07865491,74763.0,74756.0,0.001512]
[1730966483387,0.21241091,74763.0,74756.0,0.001512]
[1730966483612,0.07865491,74763.0,74756.0,0.001512]
[1730966484045,0.21241091,74763.0,74756.0,0.001512]
[1730966485171,0.21241091,74763.0,74744.0,0.0783]
[1730966485172,0.31242091,74757.0,74739.0,0.001514]
[1730966485390,0.26448379,74763.0,74739.0,0.001514]
[1730966485391,0.07865491,74740.0,74739.0,0.20199382]
[1730966485609,0.07865491,74740.0,74739.0,0.001514]
[1730966487550,0.1,74742.0,74739.0,0.001514]
[1730966490257,0.20047982,74740.0,74739.0,0.001514]
[1730966490477,0.1,74742.0,74739.0,0.001514]
[1730966490905,0.233794,74742.0,74739.0,0.001514]
[1730966491139,0.1,74742.0,74739.0,0.001514]
[1730966491353,0.233797,74740.0,74739.0,0.001514]
[1730966491775,0.1,74740.0,74739.0,0.001514]
[1730966492474,0.233793,74742.0,74739.0,0.001514]
[1730966492694,0.1,74742.0,74739.0,0.001514]
[1730966492906,0.1,74740.0,74739.0,0.001514]
[1730966493133,0.1,74742.0,74739.0,0.001514]
[1730966493134,0.133795,74741.0,74739.0,0.001514]
[1730966493369,0.364097,74740.0,74739.0,0.001514]
[1730966493596,0.49633802,74740.0,74739.0,0.001514]
[1730966495369,0.49933802,74740.0,74739.0,0.001514]
[1730966495586,0.55928001,74740.0,74739.0,0.001514]
[1730966495827,2.05928001,74740.0,74739.0,0.001514]
[1730966496283,2.08228001,74740.0,74739.0,0.001514]
[1730966496497,2.21552278,74740.0,74739.0,0.001514]
[1730966496706,2.21252278,74740.0,74739.0,0.001514]
[1730966497127,2.21552278,74740.0,74739.0,0.001514]
[1730966497547,2.21652278,74740.0,74739.0,0.001514]
[1730966498628,2.08428001,74740.0,74739.0,0.001514]
[1730966499360,2.07928001,74740.0,74739.0,0.001514]
[1730966499541,2.08428001,74740.0,74739.0,0.001514]
[1730966499989,0.56128001,74740.0,74739.0,0.001514]
[1730966500435,2.06128001,74740.0,74739.0,0.001514]
[1730966500847,2.05628001,74740.0,74739.0,0.001514]
[1730966501736,2.07928001,74740.0,74739.0,0.001514]
[1730966502408,0.23224102,74740.0,74739.0,0.001514]
[1730966502656,0.0556313,74743.0,74739.0,0.001514]
[1730966502863,0.1,74741.0,74739.0,0.001514]
[1730966503521,0.2614728,74792.0,74707.0,0.005]
[1730966503522,0.260638,74717.0,74707.0,0.005]
[1730966503739,0.233843,74714.0,74713.0,0.20047982]
[1730966503951,0.1,74713.0,74702.0,0.20056982]
[1730966504160,0.1,74713.0,74702.0,9e-05]
[1730966506824,0.005354,74712.0,74702.0,9e-05]
[1730966507036,0.005354,74712.0,74705.0,0.005]
[1730966507254,0.005354,74712.0,74709.0,0.00267676]
[1730966507719,0.1,74725.0,74708.0,0.006514]
[1730966507967,0.20047982,74716.0,74708.0,0.006514]
[1730966508171,0.005354,74724.0,74708.0,0.006514]
[1730966509276,0.005354,74724.0,74703.0,0.05409368]
[1730966509498,0.005354,74724.0,74707.0,0.00192]
[1730966509711,0.005354,74724.0,74704.0,0.13224102]
[1730966509960,0.005354,74724.0,74707.0,0.13224102]
[1730966510215,0.005354,74724.0,74708.0,0.1261]
[1730966510448,0.005354,74724.0,74709.0,0.13224102]
[1730966510708,0.20047982,74717.0,74709.0,0.15896102]
[1730966510936,0.005354,74724.0,74709.0,0.15896102]
[1730966514479,0.20047982,74718.0,74709.0,0.02672]
[1730966514923,0.005354,74724.0,74709.0,0.02672]
[1730966515577,0.1,74722.0,74709.0,0.02672]
[1730966518584,0.005354,74724.0,74709.0,0.02672]
[1730966519214,0.1,74722.0,74709.0,0.02672]
[1730966522114,0.010354,74724.0,74709.0,0.02672]
[1730966522732,0.1,74722.0,74709.0,0.02672]
[1730966525218,0.1,74722.0,74709.0,0.027553]
[1730966525638,0.233829,74722.0,74709.0,0.027553]
[1730966526054,0.1,74722.0,74709.0,0.027553]
[1730966526938,0.20047982,74718.0,74709.0,0.027553]
[1730966527161,0.1250188,74715.0,74709.0,0.000833]
[1730966527787,1.5,74715.0,74709.0,0.000833]
[1730966528200,1.5,74715.0,74704.0,0.022386]
[1730966530962,0.105,74717.0,74704.0,0.022386]
[1730966531646,1.5,74716.0,74704.0,0.022386]
[1730966532696,0.105,74717.0,74704.0,0.022386]
[1730966533175,1.605,74717.0,74704.0,0.022386]
[1730966535013,0.006666,74724.0,74704.0,0.15462702]
[1730966535232,0.20047982,74717.0,74706.0,0.018052]
[1730966535477,0.006666,74724.0,74706.0,0.018052]
[1730966535686,0.20047982,74718.0,74706.0,0.015742]
[1730966537614,0.20047982,74717.0,74707.0,0.0026767]
[1730966537823,0.20047982,74717.0,74706.0,0.14798302]
[1730966539130,0.001666,74722.0,74709.0,0.08522]
[1730966539371,0.20047982,74717.0,74709.0,0.21746102]
[1730966539808,0.001666,74722.0,74710.0,0.13224102]
[1730966540019,0.001666,74722.0,74712.0,0.1350188]
[1730966540239,0.001666,74722.0,74713.0,0.20994102]
[1730966540466,0.001666,74722.0,74715.0,0.00192]
[1730966540901,0.001666,74722.0,74716.0,0.005]
[1730966541552,0.001666,74722.0,74716.0,0.01]
[1730966542043,0.001666,74722.0,74717.0,0.1273]
[1730966542263,0.001666,74722.0,74718.0,0.00267633]
[1730966542695,0.001666,74722.0,74719.0,0.00192]
[1730966542907,0.001666,74722.0,74720.0,0.00267627]
[1730966543750,0.001666,74722.0,74717.0,0.1273]
[1730966543967,0.001666,74722.0,74717.0,0.25954102]
[1730966544417,0.001666,74722.0,74717.0,0.31414697]
[1730966544662,0.001666,74722.0,74718.0,0.13224102]
[1730966545128,0.001666,74722.0,74721.0,0.0858]
[1730966545353,0.001666,74722.0,74721.0,0.21804102]
[1730966545818,0.001666,74722.0,74721.0,0.26601714]
[1730966546518,0.001666,74722.0,74721.0,0.26334102]
[1730966548347,0.001666,74722.0,74721.0,0.26526102]
[1730966549026,0.001666,74722.0,74721.0,0.26334102]
[1730966549916,0.001666,74722.0,74721.0,0.26601705]
[1730966550126,0.001666,74722.0,74721.0,0.26334102]
[1730966550553,0.001666,74722.0,74721.0,0.26526102]
[1730966551642,0.001666,74724.0,74721.0,0.26526102]
[1730966551643,0.001666,74724.0,74723.0,0.14072]
[1730966551855,0.001666,74724.0,74723.0,0.27296102]
[1730966553001,0.001666,74724.0,74723.0,0.39797982]
[1730966553823,0.001666,74724.0,74723.0,0.63599862]
[1730966554067,0.20047982,74739.0,74734.0,0.1224]
[1730966554307,0.20047982,74739.0,74738.0,0.134]
[1730966554520,0.20047982,74739.0,74738.0,0.26816102]
[1730966554941,0.20047982,74747.0,74746.0,0.01192]
[1730966555151,0.20047982,74747.0,74746.0,0.39057982]
[1730966555573,0.001666,74751.0,74750.0,0.00192]
[1730966555785,0.001666,74751.0,74750.0,0.1368362]
[1730966555997,0.001666,74751.0,74750.0,0.1468362]
[1730966557317,0.001666,74751.0,74750.0,0.3699362]
[1730966557543,0.001666,74751.0,74750.0,0.51527982]
[1730966557756,0.20047982,74768.0,74767.0,0.08712]
[1730966557972,0.20047982,74768.0,74767.0,0.21936102]
[1730966558185,0.0818,74790.0,74773.0,0.005]
[1730966558418,0.0818,74790.0,74774.0,0.13224102]
[1730966558633,0.20214582,74792.0,74775.0,0.01]
[1730966558862,0.20047982,74780.0,74775.0,0.14491537]
[1730966559083,0.20214582,74792.0,74775.0,0.14491537]
[1730966559755,0.20214582,74792.0,74775.0,0.13991537]
[1730966559964,0.20214582,74792.0,74775.0,0.14491537]
[1730966561064,0.20214582,74792.0,74777.0,0.005]
[1730966561287,0.20214582,74792.0,74778.0,0.00267415]
[1730966561976,0.20047982,74783.0,74777.0,0.005]
[1730966562202,0.20214582,74792.0,74777.0,0.005]
[1730966564391,0.20214582,74792.0,74777.0,0.05832146]
[1730966564605,1.501664,74791.0,74777.0,0.005]
[1730966565093,0.001664,74791.0,74777.0,0.005]
[1730966566207,0.001664,74791.0,74779.0,0.00192]
[1730966566448,0.001664,74791.0,74780.0,0.00267416]
[1730966567157,0.001664,74791.0,74783.0,0.005]
[1730966567426,0.001664,74791.0,74783.0,0.26917982]
[1730966567648,0.001664,74791.0,74787.0,0.01]
[1730966567883,0.001664,74791.0,74788.0,0.14224102]
[1730966568313,0.001664,74791.0,74790.0,0.01]
[1730966568529,0.001664,74791.0,74790.0,0.26725982]
[1730966570605,0.001664,74791.0,74790.0,0.26993353]
[1730966571040,0.001666,74792.0,74791.0,0.01]
[1730966571297,0.001666,74792.0,74791.0,0.14224102]
[1730966571739,0.001666,74792.0,74791.0,0.13224102]
[1730966571962,0.001666,74792.0,74791.0,0.14224102]
[1730966572183,0.001666,74792.0,74791.0,0.01]
[1730966572433,0.001666,74792.0,74778.0,0.01]
[1730966572673,0.001666,74792.0,74779.0,0.13224102]
[1730966573589,0.18547982,74791.0,74779.0,0.13224102]
[1730966574047,0.18547982,74791.0,74776.0,0.01]
[1730966574279,0.18547982,74791.0,74777.0,0.13224102]
[1730966574508,0.18547982,74791.0,74778.0,0.01]
[1730966575664,0.18547982,74791.0,74777.0,0.13224102]
[1730966576085,0.18547982,74791.0,74778.0,0.01]
[1730966576938,0.18547982,74791.0,74777.0,0.13224102]
[1730966577166,0.18547982,74791.0,74778.0,0.01]
[1730966580677,0.18547982,74791.0,74777.0,0.14224102]
[1730966580863,0.18547982,74791.0,74778.0,0.01]
[1730966582010,0.18547982,74791.0,74774.0,0.01]
[1730966582207,0.18547982,74791.0,74774.0,0.14224102]
[1730966582955,0.18547982,74791.0,74776.0,0.005]
[1730966583491,0.1553961,74791.0,74776.0,0.005]
[1730966585800,0.1570601,74791.0,74776.0,0.005]
[1730966588336,0.0476,74790.0,74776.0,0.005]
[1730966590582,0.001664,74791.0,74778.0,0.20047982]
[1730966590795,0.20047982,74790.0,74779.0,0.14491507]
[1730966591230,0.001664,74791.0,74779.0,0.14224102]
[1730966593047,0.001664,74791.0,74779.0,0.14416102]
[1730966593264,0.001664,74791.0,74779.0,0.14224102]
[1730966593728,0.001664,74791.0,74779.0,0.13224102]
[1730966593949,0.001664,74791.0,74779.0,0.14224102]
[1730966596488,0.001664,74791.0,74780.0,0.0789]
[1730966596724,0.001664,74791.0,74781.0,0.13224102]
[1730966597792,0.001664,74791.0,74782.0,0.00267392]
[1730966598050,0.001664,74791.0,74783.0,0.13224102]
[1730966598711,0.001664,74791.0,74784.0,0.02672]
[1730966598926,0.001664,74791.0,74785.0,0.13224102]
[1730966603139,0.001666,74792.0,74786.0,0.0471]
[1730966603391,0.001666,74792.0,74787.0,0.13224102]
[1730966603604,0.001666,74792.0,74787.0,0.13416102]
[1730966605346,0.001666,74792.0,74791.0,0.00192]
[1730966605583,0.001666,74792.0,74791.0,0.17088102]
[1730966605832,0.001666,74792.0,74791.0,0.1965546]
[1730966606289,0.001666,74792.0,74791.0,0.3227546]
[1730966606513,0.001666,74792.0,74791.0,0.32008102]
[1730966607620,0.001666,74792.0,74791.0,0.4616908]
[1730966608251,0.001666,74792.0,74791.0,0.51484341]
[1730966608477,0.000758,74797.0,74796.0,0.03864]
[1730966608698,0.000758,74797.0,74796.0,0.42088102]
[1730966608931,0.000758,74797.0,74796.0,0.4624691]
[1730966609396,0.000758,74797.0,74796.0,0.42088102]
[1730966613029,0.000758,74797.0,74796.0,0.41896102]
[1730966613725,0.000758,74797.0,74796.0,0.42088102]
[1730966620852,0.000758,74799.0,74798.0,0.03864]
[1730966621091,0.000758,74799.0,74798.0,0.29388102]
[1730966625022,0.000758,74799.0,74798.0,0.29388102]
[1730966632339,0.000758,74799.0,74798.0,0.29196102]
[1730966633600,0.000758,74799.0,74798.0,0.26896102]
[1730966635133,0.000758,74799.0,74798.0,0.29196102]
[1730966635362,0.000758,74799.0,74798.0,0.29388102]
[1730966635770,0.27837982,74808.0,74807.0,0.03672]
[1730966635977,0.27837982,74808.0,74807.0,0.16896102]
[1730966636184,0.0779,74808.0,74807.0,0.16896102]
[1730966638319,0.0779,74808.0,74797.0,0.002752]
[1730966638320,0.0464,74807.0,74797.0,0.000832]
[1730966638550,0.0795,74806.0,74799.0,0.20047982]
[1730966638779,0.0795,74806.0,74800.0,0.13224102]
[1730966639453,0.0795,74806.0,74800.0,0.13724102]
[1730966640549,0.0795,74806.0,74800.0,0.13224102]
[1730966641799,0.001664,74811.0,74797.0,0.000832]
[1730966641800,0.1236,74801.0,74797.0,0.000832]
[1730966642033,0.0452,74799.0,74797.0,0.000832]
[1730966642248,0.1236,74798.0,74797.0,0.000832]
[1730966657548,0.362293,74798.0,74797.0,0.000832]
[1730966657765,0.53868308,74798.0,74797.0,0.000832]
[1730966658222,2.03868308,74798.0,74797.0,0.000832]
[1730966660773,1.86084102,74798.0,74797.0,0.000832]
[1730966661430,1.99453402,74798.0,74797.0,0.000832]
[1730966663849,0.49453402,74798.0,74797.0,0.000832]
[1730966664058,1.99453402,74798.0,74797.0,0.000832]
[1730966665143,1.86084102,74798.0,74797.0,0.000832]
[1730966666228,1.7286,74798.0,74797.0,0.000832]
[1730966668453,1.862293,74798.0,74797.0,0.000832]
[1730966669119,1.99453402,74798.0,74797.0,0.000832]
[1730966671306,1.86084102,74798.0,74797.0,0.000832]
[1730966672176,1.99453402,74798.0,74797.0,0.000832]
[1730966672392,1.86084102,74798.0,74797.0,0.000832]
[1730966672607,1.99453402,74798.0,74797.0,0.000832]
[1730966673760,1.86084102,74798.0,74797.0,0.000832]
[1730966680102,0.36084102,74798.0,74797.0,0.000832]
[1730966680555,1.86084102,74798.0,74797.0,0.000832]
[1730966683795,1.7286,74798.0,74797.0,0.000832]
[1730966686712,0.2286,74798.0,74797.0,0.000832]
[1730966687344,1.80724596,74798.0,74797.0,0.000832]
[1730966690313,0.30724596,74798.0,74797.0,0.000832]
[1730966690531,0.2286,74798.0,74797.0,0.000832]
[1730966690800,1.7286,74798.0,74797.0,0.000832]
[1730966692837,2.05254426,74798.0,74797.0,0.000832]
[1730966693050,1.96495015,74798.0,74797.0,0.000832]
[1730966693473,1.90499008,74798.0,74797.0,0.000832]
[1730966693680,1.96495204,74798.0,74797.0,0.000832]
[1730966694145,1.90499008,74798.0,74797.0,0.000832]
[1730966695667,1.96495204,74798.0,74797.0,0.000832]
[1730966695875,1.92080298,74798.0,74797.0,0.000832]
[1730966696723,2.0883043,74798.0,74797.0,0.000832]
[1730966696959,2.28610674,74798.0,74797.0,0.000832]
[1730966697175,0.1,74797.0,74792.0,0.000832]
[1730966697384,0.25729192,74793.0,74792.0,0.000832]
[1730966697592,0.83750578,74793.0,74792.0,0.000832]
[1730966697815,0.84250578,74793.0,74792.0,0.000832]
[1730966698028,0.87649757,74793.0,74792.0,0.000832]
[1730966698253,0.88649757,74793.0,74792.0,0.000832]
[1730966698492,0.005,74780.0,74779.0,0.000832]
[1730966698695,1.9772542,74780.0,74779.0,0.000832]
[1730966698908,1.93728698,74780.0,74779.0,0.000832]
[1730966699145,1.99723782,74780.0,74779.0,0.000832]
[1730966699585,1.93728698,74780.0,74779.0,0.000832]
[1730966701373,1.98356501,74780.0,74779.0,0.000832]
[1730966701588,2.15574307,74780.0,74779.0,0.000832]
[1730966702281,2.02350005,74780.0,74779.0,0.000832]
[1730966702705,2.03744845,74780.0,74779.0,0.000832]
[1730966705856,1.91252446,74780.0,74779.0,0.000832]
[1730966706060,2.03744845,74780.0,74779.0,0.000832]
[1730966706923,2.3402465,74780.0,74779.0,0.000832]
[1730966707167,2.51740341,74780.0,74779.0,0.000832]
[1730966707381,2.54936048,74780.0,74779.0,0.000832]
[1730966707592,2.71450213,74780.0,74779.0,0.000832]
[1730966707800,2.63474351,74780.0,74779.0,0.000832]
[1730966708498,2.71447389,74780.0,74779.0,0.000832]
[1730966709122,2.63474351,74780.0,74779.0,0.000832]
[1730966709336,2.71447389,74780.0,74779.0,0.000832]
[1730966709558,2.48848927,74780.0,74779.0,0.000832]
[1730966709762,2.54827013,74780.0,74779.0,0.000832]
[1730966709974,2.48848927,74780.0,74779.0,0.000832]
[1730966710598,2.41801019,74780.0,74779.0,0.000832]
[1730966711026,2.41901019,74780.0,74779.0,0.000832]
[1730966711456,3.00952251,74780.0,74779.0,0.000832]
[1730966711656,2.82664845,74780.0,74779.0,0.000832]
[1730966711882,2.70172446,74780.0,74779.0,0.000832]
[1730966712099,2.69524845,74780.0,74779.0,0.000832]
[1730966712334,2.57032446,74780.0,74779.0,0.000832]
[1730966712556,1.07032446,74780.0,74779.0,0.000832]
[1730966713183,0.93308344,74780.0,74779.0,0.000832]
[1730966713386,0.93208344,74780.0,74779.0,0.000832]
[1730966713833,0.93608344,74780.0,74779.0,0.000832]
[1730966714248,0.93108344,74780.0,74779.0,0.000832]
[1730966714458,0.93608344,74780.0,74779.0,0.000832]
[1730966715087,0.9802325,74780.0,74779.0,0.000832]
[1730966717471,0.2030325,74780.0,74779.0,0.000832]
[1730966717670,1.7030325,74780.0,74779.0,0.000832]
[1730966717886,1.79589183,74780.0,74779.0,0.000832]
[1730966718755,1.7030325,74780.0,74779.0,0.000832]
[1730966722072,1.65888344,74780.0,74779.0,0.000832]
[1730966722745,0.005,74783.0,74779.0,0.000832]
[1730966722965,0.12492399,74780.0,74779.0,0.000832]
[1730966723636,0.005,74783.0,74779.0,0.000832]
[1730966724751,0.005,74790.0,74780.0,0.27627982]
[1730966725008,0.005,74788.0,74780.0,0.0758]
[1730966725223,0.1,74790.0,74781.0,0.0489]
[1730966725650,0.001664,74792.0,74782.0,0.20047982]
[1730966725861,0.001664,74792.0,74783.0,0.0789]
[1730966726089,0.001664,74792.0,74784.0,0.13491504]
[1730966726515,0.001664,74792.0,74785.0,0.0789]
[1730966726733,0.001664,74792.0,74786.0,0.1824149]
[1730966726949,0.001664,74792.0,74789.0,0.00192]
[1730966727181,0.001664,74803.0,74792.0,0.0804]
[1730966727407,0.001664,74803.0,74802.0,0.10532]
[1730966727636,0.001664,74803.0,74802.0,0.28683428]
[1730966727855,0.001664,74803.0,74802.0,0.44846827]
[1730966728070,0.001664,74811.0,74804.0,0.01192]
[1730966728296,0.001664,74811.0,74805.0,0.13491413]
[1730966728762,0.001664,74811.0,74805.0,0.13224102]
[1730966736040,0.001664,74811.0,74802.0,0.0804]
[1730966736508,0.001664,74811.0,74795.0,0.05557625]
[1730966736737,0.001664,74811.0,74798.0,0.01]
[1730966736930,0.001664,74811.0,74799.0,0.13224102]
[1730966747405,0.001664,74811.0,74800.0,0.00267343]
[1730966747616,0.001664,74811.0,74801.0,0.13224102]
[1730966747860,0.001664,74811.0,74803.0,0.01]
[1730966748082,0.001664,74811.0,74805.0,0.00192]
[1730966748319,0.001664,74811.0,74805.0,0.27526102]
[1730966748980,0.001664,74811.0,74805.0,0.29826102]
[1730966749644,0.001664,74811.0,74810.0,0.01]
[1730966749855,0.001664,74811.0,74810.0,0.14224102]
[1730966755881,0.001664,74811.0,74810.0,0.13224102]
[1730966756087,0.001664,74811.0,74809.0,0.005]
[1730966757395,0.001664,74811.0,74805.0,0.05515925]
[1730966757612,0.001664,74811.0,74806.0,0.13224102]
[1730966763824,0.001664,74811.0,74807.0,0.02671]
[1730966764033,0.001664,74811.0,74808.0,0.13224102]
[1730966777012,0.20047982,74816.0,74806.0,0.000832]
[1730966777224,0.0832,74817.0,74806.0,0.000832]
[1730966778216,0.0832,74817.0,74809.0,0.20047982]
[1730966778373,0.002,74818.0,74809.0,0.20047982]
[1730966778761,0.002,74818.0,74810.0,0.13224102]
[1730966778986,0.002,74818.0,74810.0,0.13491415]
[1730966779190,0.002,74818.0,74810.0,0.13224102]
[1730966782918,0.105757,74826.0,74810.0,0.13224102]
[1730966782919,0.000757,74826.0,74820.0,0.02671]
[1730966783093,0.20047982,74846.0,74842.0,0.00192]
[1730966783297,0.20047982,74846.0,74845.0,0.27463399]
[1730966783519,0.001157,74859.0,74845.0,0.27463399]
[1730966783520,0.20047982,74852.0,74846.0,0.123]
[1730966783731,0.001157,74859.0,74853.0,0.023]
[1730966783962,0.001157,74859.0,74858.0,0.14792399]
[1730966784165,0.001157,74859.0,74858.0,0.35828501]
[1730966784368,0.20123682,74878.0,74864.0,0.023]
[1730966784592,0.20123682,74878.0,74860.0,0.01]
[1730966784593,0.000757,74878.0,74866.0,0.15984399]
[1730966784847,0.0004,74879.0,74878.0,0.033]
[1730966785064,0.000757,74893.0,74891.0,0.023]
[1730966785065,0.20047982,74893.0,74891.0,0.023]
[1730966785269,0.28307982,74932.0,74896.0,0.023]
[1730966785270,0.0004,74919.0,74896.0,0.023]
[1730966785479,0.20047982,74908.0,74899.0,0.13224102]
[1730966785695,0.0004,74919.0,74905.0,0.023]
[1730966785917,0.0004,74919.0,74909.0,0.023]
[1730966786149,0.0004,74919.0,74906.0,0.13224102]
[1730966786150,0.0004,74919.0,74907.0,0.023]
[1730966786361,0.0004,74919.0,74911.0,0.20047982]
[1730966786577,0.0004,74919.0,74912.0,0.13224102]
[1730966786997,0.0004,74919.0,74918.0,0.14792399]
[1730966787206,0.0004,74919.0,74918.0,0.28016501]
[1730966787658,0.0004,74919.0,74918.0,0.15524102]
[1730966787868,0.0004,74919.0,74918.0,0.13224102]
[1730966788075,0.32540381,74946.0,74918.0,0.13224102]
[1730966788076,0.005,74950.0,74919.0,0.023]
[1730966788292,0.20547982,74957.0,74934.0,0.12492399]
[1730966788531,0.20051982,74956.0,74937.0,0.023]
[1730966788763,0.005,74953.0,74938.0,0.13224102]
[1730966788975,0.005,74950.0,74921.0,0.033]
[1730966789200,4e-05,74956.0,74938.0,0.20047982]
[1730966789410,4e-05,74956.0,74938.0,0.13224102]
[1730966790061,4e-05,74956.0,74938.0,0.15524102]
[1730966790298,4e-05,74956.0,74939.0,0.023]
[1730966790502,4e-05,74956.0,74944.0,0.14792399]
[1730966790716,4e-05,74956.0,74946.0,0.023]
[1730966790928,4e-05,74956.0,74950.0,0.20047982]
[1730966791135,4e-05,74956.0,74954.0,0.12492399]
[1730966791371,4e-05,74956.0,74955.0,0.13490884]
[1730966791597,4e-05,74956.0,74955.0,0.15524102]
[1730966792405,4e-05,74956.0,74955.0,0.15790865]
[1730966792622,4e-05,74956.0,74955.0,0.15524102]
[1730966792826,4e-05,74956.0,74944.0,0.023]
[1730966793046,0.12496399,74956.0,74945.0,0.13224102]
[1730966793463,1.5,74955.0,74945.0,0.13224102]
[1730966794725,4e-05,74956.0,74945.0,0.13224102]
[1730966794952,4e-05,74956.0,74943.0,0.20047982]
[1730966795181,1.5,74947.0,74943.0,0.20047982]
[1730966795577,1.5,74947.0,74935.0,0.20047982]
[1730966795784,1.5,74947.0,74936.0,0.13224102]
[1730966795991,1.5,74947.0,74935.0,0.20047982]
[1730966795992,0.005,74945.0,74935.0,0.20047982]
[1730966797790,0.005,74945.0,74927.0,0.20047982]